bitfinex/quotes_SOLUSD_20241123
["timestamp","ask_amount","ask_price","bid_price","bid_amount"]
[1732399216843,23.776884,255.14,255.08,7.66302002]
[1732399220251,23.776884,255.14,255.07,15.7498]
[1732399220960,23.776884,255.12,255.07,15.7498]
[1732399222029,23.776884,255.12,255.05,7.66302002]
[1732399222853,23.776884,255.1,255.02,27.66302002]
[1732399223233,23.776884,255.1,255.02,32.645469]
[1732399224151,23.776884,255.1,255.02,27.66302002]
[1732399225042,23.776884,255.08,255.02,7.66302002]
[1732399225647,23.776884,255.1,255.02,7.66302002]
[1732399227155,23.776884,255.1,255.04,7.66302002]
[1732399228666,6.5843,255.18,255.04,7.66302002]
[1732399228838,7.66302002,255.13,255.04,7.66302002]
[1732399229966,23.776884,255.12,255.08,7.66302002]
[1732399231850,23.776884,255.13,255.06,7.66302002]
[1732399232162,23.776884,255.11,255.04,7.66302002]
[1732399233361,23.776884,255.05,255.02,4.75884187]
[1732399233568,23.776884,255.03,255.02,4.75884187]
[1732399234857,23.776884,255.03,254.97,6.15351868]
[1732399235058,23.776884,255.03,254.96,13.8165387]
[1732399237361,23.776884,255.03,254.97,6.15351868]
[1732399237764,7.66302002,255.02,254.97,6.15351868]
[1732399237974,23.776884,255.01,254.94,6.15351868]
[1732399238953,23.776884,255.01,254.95,7.66302002]
[1732399239566,23.776884,254.99,254.93,6.15351868]
[1732399240058,23.776884,254.99,254.93,13.8165387]
[1732399240254,23.776884,255.0,254.93,13.8165387]
[1732399240648,23.776884,255.0,254.93,7.66302002]
[1732399240845,23.776884,255.0,254.93,6.15351868]
[1732399241056,23.776884,255.0,254.94,7.66302002]
[1732399242457,6.3524,255.03,254.92,6.15351868]
[1732399242458,23.776884,254.98,254.92,6.15351868]
[1732399242767,23.776884,254.98,254.91,6.15351868]
[1732399242971,23.776884,254.98,254.9,13.8165387]
[1732399243155,23.776884,254.98,254.9,6.15351868]
[1732399243359,23.776884,254.98,254.9,7.66302002]
[1732399244364,23.776884,254.95,254.89,6.15351868]
[1732399245479,23.776884,254.95,254.88,6.15351868]
[1732399246285,23.776884,254.93,254.85,6.15351868]
[1732399246456,23.776884,254.93,254.85,13.8165387]
[1732399247474,23.776884,254.93,254.85,7.66302002]
[1732399249972,23.776884,254.93,254.87,7.66302002]
[1732399250269,23.776884,254.95,254.87,7.66302002]
[1732399252575,23.776884,254.93,254.86,13.8165387]
[1732399253257,7.66302002,254.91,254.85,6.15351868]
[1732399253455,23.776884,254.86,254.82,4.76257693]
[1732399254487,23.776884,254.88,254.82,4.76257693]
[1732399258090,23.776884,254.88,254.83,7.66302002]
[1732399258269,27.66302002,254.89,254.82,4.76257693]
[1732399258583,23.776884,254.88,254.82,4.76257693]
[1732399259266,23.776884,254.9,254.83,7.66302002]
[1732399261289,23.776884,254.91,254.83,7.66302002]
[1732399261471,31.43990402,254.91,254.83,7.66302002]
[1732399262173,6.4085,254.99,254.83,23.03472002]
[1732399262376,7.66302002,254.95,254.83,15.3717]
[1732399262584,7.66302002,254.93,254.84,7.66302002]
[1732399262763,20.0,254.98,254.83,15.3717]
[1732399262764,7.66302002,254.91,254.83,15.3717]
[1732399263488,23.776884,254.88,254.82,4.76257693]
[1732399264673,7.66302002,254.85,254.82,4.76257693]
[1732399264898,23.776884,254.84,254.82,4.76257693]
[1732399267391,23.776884,254.86,254.82,4.76257693]
[1732399267886,6.4085,254.9,254.83,7.66302002]
[1732399268264,14.07152002,254.9,254.83,7.66302002]
[1732399269201,23.776884,254.89,254.82,4.76257693]
[1732399270187,23.776884,254.89,254.83,7.66302002]
[1732399272867,23.776884,254.89,254.82,4.76257693]
[1732399275195,20.0,254.92,254.85,7.66302002]
[1732399275395,20.0,254.9,254.85,7.66302002]
[1732399275688,20.0,254.88,254.85,7.66302002]
[1732399276070,23.776884,254.9,254.83,7.66302002]
[1732399276283,20.0,254.89,254.83,7.66302002]
[1732399276485,20.0,254.87,254.83,7.66302002]
[1732399276868,23.776884,254.9,254.85,7.66302002]
[1732399277071,23.776884,254.88,254.85,7.66302002]
[1732399278187,43.776884,254.91,254.85,7.66302002]
[1732399278389,6.2469,255.03,254.89,7.66302002]
[1732399278583,7.66302002,254.98,254.89,7.66302002]
[1732399279675,20.0,254.97,254.89,7.66302002]
[1732399280571,23.776884,254.94,254.89,7.66302002]
[1732399281279,7.66302002,255.04,254.93,24.24622002]
[1732399281489,7.66302002,255.04,254.96,7.66302002]
[1732399282496,43.776884,255.03,254.96,7.66302002]
[1732399283982,43.776884,255.03,254.98,7.66302002]
[1732399284179,23.776884,255.05,254.98,7.66302002]
[1732399285401,23.776884,255.03,254.98,7.66302002]
[1732399285590,23.776884,255.01,254.98,7.66302002]
[1732399285982,20.0,255.0,254.98,7.66302002]
[1732399287200,23.776884,255.01,254.98,7.66302002]
[1732399289982,20.4509,255.14,254.98,7.66302002]
[1732399290191,20.0,255.07,255.0,7.66302002]
[1732399290576,15.00580455,255.13,254.93,59.47268095]
[1732399290577,20.0,255.09,255.02,7.66302002]
[1732399290901,7.66302002,255.1,255.02,7.66302002]
[1732399291398,30.65208008,255.19,255.03,7.66302002]
[1732399291399,7.66302002,255.11,255.03,7.66302002]
[1732399292200,7.66302002,255.15,255.07,7.66302002]
[1732399292499,6.3291,255.17,255.07,7.66302002]
[1732399292698,7.66302002,255.14,255.07,7.66302002]
[1732399292899,7.66302002,255.12,255.05,7.66302002]
[1732399293700,7.66302002,255.12,255.03,23.01012002]
[1732399294505,23.776884,255.11,255.03,23.01012002]
[1732399296499,23.776884,255.13,255.05,7.66302002]
[1732399297687,23.918,255.23,255.1,7.66302002]
[1732399298005,7.66302002,255.18,255.1,7.66302002]
[1732399298992,23.776884,255.17,255.1,7.66302002]
[1732399299198,7.66302002,255.14,255.04,20.0]
[1732399299398,7.66302002,255.14,255.06,7.66302002]
[1732399299399,23.776884,255.13,255.06,7.66302002]
[1732399299990,23.776884,255.11,255.03,23.01012002]
[1732399300184,23.776884,255.11,255.05,7.66302002]
[1732399300385,23.776884,255.12,255.05,7.66302002]
[1732399301193,23.776884,255.14,255.07,7.66302002]
[1732399304414,23.776884,255.17,255.11,7.66302002]
[1732399305093,23.776884,255.17,255.09,7.66302002]
[1732399306214,31.43990402,255.17,255.03,15.3471]
[1732399306406,23.776884,255.13,255.06,7.66302002]
[1732399306613,23.776884,255.13,255.04,20.0]
[1732399306825,23.776884,255.13,255.07,7.66302002]
[1732399307019,23.776884,255.13,255.06,7.66302002]
[1732399309530,23.776884,255.13,255.08,7.66302002]
[1732399309720,23.776884,255.14,255.08,7.66302002]
[1732399311201,3.9184,255.21,255.08,7.66302002]
[1732399311202,23.776884,255.16,255.08,7.66302002]
[1732399311607,23.776884,255.16,255.1,7.66302002]
[1732399313137,20.1154,255.26,255.12,7.59645912]
[1732399313297,20.1154,255.26,255.12,23.15605912]
[1732399313298,7.66302002,255.21,255.12,23.15605912]
[1732399314335,23.776884,255.2,255.12,23.15605912]
[1732399316125,23.276884,255.2,255.12,23.15605912]
[1732399316919,7.66302002,255.19,255.12,15.5596]
[1732399317327,7.66302002,255.15,255.06,23.0942]
[1732399317513,7.66302002,255.15,255.07,7.66302002]
[1732399318026,23.776884,255.14,255.07,7.66302002]
[1732399318209,23.776884,255.14,255.06,16.6582]
[1732399320223,23.776884,255.14,255.07,7.66302002]
[1732399320422,23.776884,255.14,255.06,16.6582]
[1732399320423,23.776884,255.16,255.09,7.66302002]
[1732399321125,7.66302002,255.2,255.11,7.66302002]
[1732399321514,7.66302002,255.22,255.13,7.66302002]
[1732399322322,7.66302002,255.22,255.15,7.66302002]
[1732399322716,23.776884,255.27,255.15,7.66302002]
[1732399323022,3.9173,255.28,255.15,7.66302002]
[1732399323023,23.776884,255.23,255.15,7.66302002]
[1732399324236,23.776884,255.21,255.15,7.66302002]
[1732399324438,23.776884,255.21,255.09,6.4194]
[1732399324439,23.776884,255.21,255.13,7.66302002]
[1732399326413,23.776884,255.21,255.15,7.66302002]
[1732399326640,23.776884,255.23,255.15,24.32122002]
[1732399327133,7.16302002,255.22,255.15,24.32122002]
[1732399327331,23.776884,255.21,255.15,24.32122002]
[1732399327526,7.66302002,255.18,255.1,2.53714659]
[1732399327734,23.776884,255.17,255.1,10.20016661]
[1732399328031,23.776884,255.19,255.12,7.66302002]
[1732399330622,23.776884,255.19,255.1,30.20016661]
[1732399330839,23.776884,255.19,255.12,7.66302002]
[1732399332322,23.776884,255.21,255.14,7.66302002]
[1732399332521,23.776884,255.23,255.14,7.66302002]
[1732399332831,23.776884,255.21,255.14,7.66302002]
[1732399333236,7.66302002,255.24,255.16,7.66302002]
[1732399333617,7.66302002,255.24,255.17,15.5584]
[1732399334230,7.66302002,255.22,255.17,15.5584]
[1732399334625,23.776884,255.21,255.17,15.5584]
[1732399334826,23.776884,255.23,255.17,15.5584]
[1732399335325,31.43990402,255.23,255.17,15.5584]
[1732399336444,23.776884,255.23,255.17,23.22142002]
[1732399336743,23.776884,255.24,255.17,23.22142002]
[1732399337447,23.776884,255.24,255.17,15.5584]
[1732399337621,7.66302002,255.23,255.17,15.5584]
[1732399338448,6.4631,255.36,255.18,20.0]
[1732399338745,7.66302002,255.29,255.2,7.66302002]
[1732399340035,23.776884,255.34,255.2,7.66302002]
[1732399340230,23.776884,255.28,255.2,7.66302002]
[1732399340631,23.776884,255.28,255.18,20.0]
[1732399340833,6.4631,255.36,255.24,7.66302002]
[1732399341153,7.66302002,255.33,255.24,7.66302002]
[1732399341343,7.66302002,255.31,255.24,7.66302002]
[1732399341644,7.66302002,255.29,255.18,26.15351868]
[1732399341830,7.66302002,255.29,255.21,20.0]
[1732399342447,23.776884,255.28,255.2,7.66302002]
[1732399343833,23.776884,255.26,255.2,7.66302002]
[1732399344341,23.776884,255.26,255.19,7.66302002]
[1732399344740,23.776884,255.26,255.21,7.66302002]
[1732399344946,23.776884,255.28,255.21,7.66302002]
[1732399346342,23.776884,255.29,255.21,7.66302002]
[1732399347355,23.776884,255.29,255.23,7.66302002]
[1732399347529,23.776884,255.3,255.23,7.66302002]
[1732399350432,23.776884,255.3,255.21,7.66302002]
[1732399351247,31.43990402,255.3,255.21,7.66302002]
[1732399352551,23.776884,255.3,255.21,7.66302002]
[1732399352855,31.43990402,255.3,255.22,20.0]
[1732399353257,31.43990402,255.3,255.18,20.0]
[1732399353471,31.43990402,255.3,255.21,7.66302002]
[1732399353761,31.43990402,255.3,255.22,20.0]
[1732399355368,31.43990402,255.3,255.17,28.26531868]
[1732399355531,23.776884,255.27,255.2,20.0]
[1732399356040,23.776884,255.27,255.21,7.66302002]
[1732399358235,23.776884,255.28,255.21,7.66302002]
[1732399358961,23.776884,255.29,255.21,7.66302002]
[1732399359463,23.776884,255.29,255.23,7.66302002]
[1732399361270,23.776884,255.3,255.23,7.66302002]
[1732399362941,23.776884,255.31,255.23,7.66302002]
[1732399363141,7.66302002,255.32,255.25,7.66302002]
[1732399363537,3.41546053,255.4,255.26,15.7702]
[1732399363737,7.66302002,255.33,255.26,15.7702]
[1732399364551,23.776884,255.32,255.26,15.7702]
[1732399365971,23.776884,255.33,255.26,15.7702]
[1732399371079,23.776884,255.31,255.26,15.7702]
[1732399371249,23.776884,255.29,255.26,15.7702]
[1732399372453,7.66302002,255.3,255.26,15.7702]
[1732399375874,7.66302002,255.32,255.26,15.7702]
[1732399376173,23.776884,255.31,255.26,15.7702]
[1732399379864,7.66302002,255.3,255.26,15.7702]
[1732399380175,23.776884,255.29,255.26,15.7702]
[1732399380479,23.776884,255.27,255.21,15.8338]
[1732399382282,23.776884,255.27,255.19,7.66302002]
[1732399382283,23.776884,255.22,255.17,6.15351868]
[1732399382455,7.66302002,255.2,255.14,21.98731868]
[1732399383157,23.776884,255.19,255.14,21.98731868]
[1732399383360,7.66302002,255.18,255.13,6.15351868]
[1732399383669,23.776884,255.15,255.11,6.15351868]
[1732399383978,23.776884,255.15,255.1,6.15351868]
[1732399384655,23.776884,255.15,255.08,29.6503387]
[1732399384886,23.776884,255.15,255.09,6.15351868]
[1732399385569,23.776884,255.13,255.08,6.15351868]
[1732399385767,23.776884,255.13,255.07,6.15351868]
[1732399385768,23.776884,255.11,255.07,6.15351868]
[1732399385971,23.776884,255.11,255.05,6.15351868]
[1732399386171,23.776884,255.11,255.04,13.8165387]
[1732399386483,23.776884,255.11,255.05,6.15351868]
[1732399387392,23.776884,255.11,255.04,2.03686597]
[1732399388703,7.66302002,255.08,255.04,2.03686597]
[1732399388871,23.776884,255.07,255.04,2.03686597]
[1732399390374,23.776884,255.09,255.04,2.03686597]
[1732399391687,7.66302002,255.06,255.04,2.03686597]
[1732399391882,23.776884,255.05,255.04,2.03686597]
[1732399392699,23.776884,255.05,254.98,7.66302002]
[1732399393069,23.776884,255.05,254.96,16.3966]
[1732399393070,7.66302002,255.04,254.96,24.05962002]
[1732399393292,23.776884,255.03,254.96,24.05962002]
[1732399394194,3.9201,255.1,254.96,24.05962002]
[1732399394195,23.776884,255.05,254.96,24.05962002]
[1732399394489,23.776884,255.05,255.02,7.66302002]
[1732399395896,23.776884,255.05,254.99,7.66302002]
[1732399396073,23.776884,255.06,254.99,7.66302002]
[1732399397395,23.776884,255.06,254.96,16.3966]
[1732399397396,23.776884,255.08,255.01,7.66302002]
[1732399398497,6.617,255.13,255.05,7.66302002]
[1732399399432,7.66302002,255.12,255.05,7.66302002]
[1732399399983,23.776884,255.11,255.05,7.66302002]
[1732399401975,23.776884,255.11,254.96,16.3966]
[1732399402303,23.776884,255.11,255.03,7.66302002]
[1732399402506,23.776884,255.09,255.03,7.66302002]
[1732399403789,23.776884,255.11,255.03,7.66302002]
[1732399405806,10.5355,255.2,255.09,7.66302002]
[1732399406010,7.66302002,255.15,255.07,7.66302002]
[1732399406321,10.5355,255.2,255.05,7.66302002]
[1732399406322,7.66302002,255.13,255.05,7.66302002]
[1732399407093,23.776884,255.12,255.05,7.66302002]
[1732399407399,6.617,255.2,255.11,7.66302002]
[1732399407599,14.28002002,255.2,255.11,7.66302002]
[1732399408505,23.776884,255.19,255.11,7.66302002]
[1732399409998,6.2503,255.27,255.13,7.66302002]
[1732399410191,7.66302002,255.23,255.13,7.66302002]
[1732399410395,7.66302002,255.21,255.13,7.66302002]
[1732399411408,23.776884,255.2,255.13,7.66302002]
[1732399415697,23.776884,255.2,255.06,30.65208008]
[1732399415698,23.776884,255.2,255.15,7.66302002]
[1732399416014,7.66302002,255.25,255.17,7.66302002]
[1732399417616,23.776884,255.24,255.17,7.66302002]
[1732399417990,7.66302002,255.21,255.07,15.0859]
[1732399418311,27.694784,255.24,255.07,15.0859]
[1732399418312,7.66302002,255.13,255.07,15.0859]
[1732399419429,7.66302002,255.13,255.08,20.0]
[1732399421417,7.66302002,255.15,255.08,20.0]
[1732399422419,7.66302002,255.15,255.07,22.74892002]
[1732399427023,7.66302002,255.17,255.07,22.74892002]
[1732399427428,19.3881,255.25,255.07,22.74892002]
[1732399427429,7.66302002,255.15,255.07,22.74892002]
[1732399430307,7.66302002,255.17,255.09,7.66302002]
[1732399430507,23.776884,255.16,255.09,7.66302002]
[1732399431917,23.776884,255.18,255.09,7.66302002]
[1732399432444,7.66302002,255.17,255.09,7.66302002]
[1732399432732,23.776884,255.16,255.09,7.66302002]
[1732399436832,23.776884,255.18,255.09,7.66302002]
[1732399439519,7.66302002,255.17,255.09,7.66302002]
[1732399439832,23.776884,255.16,255.09,7.66302002]
[1732399440018,31.43990402,255.18,255.09,7.66302002]
[1732399443156,23.776884,255.15,255.07,21.23941868]
[1732399443334,23.776884,255.15,255.07,22.74892002]
[1732399444344,23.776884,255.13,255.07,22.74892002]
[1732399444940,23.776884,255.13,255.07,15.0859]
[1732399444941,7.66302002,255.12,255.07,15.0859]
[1732399445119,23.776884,255.11,255.07,15.0859]
[1732399445516,23.776884,255.13,255.07,15.0859]
[1732399448335,7.66302002,255.12,255.07,15.0859]
[1732399448528,23.776884,255.11,255.05,7.66302002]
[1732399448920,23.776884,255.11,255.03,13.8165387]
[1732399449619,7.66302002,255.1,255.03,13.8165387]
[1732399450626,23.776884,255.11,255.03,13.8165387]
[1732399451343,23.776884,255.11,255.05,7.66302002]
[1732399454630,23.776884,255.13,255.05,7.66302002]
[1732399456243,6.0202,255.19,255.07,7.66302002]
[1732399456443,7.66302002,255.16,255.07,7.66302002]
[1732399456821,7.66302002,255.18,255.09,7.66302002]
[1732399457625,7.66302002,255.18,255.09,13.8165387]
[1732399457924,7.66302002,255.18,255.1,6.15351868]
[1732399459032,23.776884,255.17,255.1,6.15351868]
[1732399467636,23.776884,255.17,255.09,7.66302002]
[1732399467637,23.776884,255.17,255.11,6.15351868]
[1732399467832,23.776884,255.17,255.1,6.15351868]
[1732399468353,23.776884,255.17,255.11,6.15351868]
[1732399469754,23.776884,255.14,255.1,6.15351868]
[1732399469956,23.776884,255.14,255.09,22.74311868]
[1732399470454,23.776884,255.14,255.09,16.5896]
[1732399471749,23.776884,255.14,255.08,6.15351868]
[1732399473150,23.776884,255.14,255.07,13.8165387]
[1732399473447,23.776884,255.11,255.07,6.15351868]
[1732399474036,23.776884,255.13,255.07,6.15351868]
[1732399475468,23.776884,255.13,255.06,7.66302002]
[1732399478462,7.66302002,255.1,255.03,15.062]
[1732399479753,23.776884,255.11,255.03,15.062]
[1732399480074,23.776884,255.11,255.04,7.66302002]
[1732399485572,6.0691,255.17,255.06,7.66302002]
[1732399485768,23.776884,255.13,255.06,7.66302002]
[1732399486073,23.776884,255.13,255.04,7.66302002]
[1732399486269,20.5645,255.25,255.08,7.66302002]
[1732399486440,7.66302002,255.16,255.08,7.66302002]
[1732399487669,23.776884,255.15,255.06,27.66302002]
[1732399488467,6.6088,255.21,255.08,7.66302002]
[1732399488673,23.776884,255.16,255.08,7.66302002]
[1732399491648,23.776884,255.16,255.08,13.79203914]
[1732399491968,23.776884,255.16,255.08,7.66302002]
[1732399492170,23.776884,255.16,255.07,6.12901912]
[1732399492471,23.776884,255.14,255.07,13.79203914]
[1732399492669,23.776884,255.14,255.07,7.66302002]
[1732399494567,23.776884,255.14,255.06,13.79203914]
[1732399496559,23.776884,255.14,255.07,6.12901912]
[1732399498077,23.776884,255.14,255.06,13.79203914]
[1732399498277,23.776884,255.14,255.08,7.66302002]
[1732399500670,23.776884,255.14,255.07,6.12901912]
[1732399502096,7.66302002,255.13,255.07,6.12901912]
[1732399502388,7.66302002,255.11,255.06,6.12901912]
[1732399505089,6.6088,255.21,255.07,7.66302002]
[1732399505292,7.66302002,255.16,255.08,6.12901912]
[1732399507677,7.66302002,255.16,255.08,6.12665803]
[1732399508977,7.66302002,255.16,255.09,6.12665803]
[1732399511579,23.776884,255.2,255.09,6.12665803]
[1732399511781,7.66302002,255.16,255.09,6.12665803]
[1732399512395,23.776884,255.2,255.09,6.12665803]
[1732399512577,7.66302002,255.17,255.09,6.12665803]
[1732399512779,23.776884,255.2,255.11,6.12665803]
[1732399512991,7.66302002,255.19,255.11,6.12665803]
[1732399513297,23.776884,255.2,255.11,6.12665803]
[1732399513298,7.66302002,255.17,255.11,6.12665803]
[1732399516385,7.66302002,255.2,255.11,13.78967805]
[1732399516582,7.66302002,255.2,255.1,2.70034039]
[1732399516583,7.66302002,255.23,255.15,7.66302002]
[1732399518379,7.66302002,255.23,255.15,13.78967805]
[1732399519830,7.66302002,255.23,255.15,6.12665803]
[1732399520003,7.66302002,255.23,255.14,6.12665803]
[1732399520202,16.005,255.31,255.14,6.12665803]
[1732399520203,23.776884,255.27,255.14,6.12665803]
[1732399520423,7.66302002,255.23,255.15,7.66302002]
[1732399525193,7.66302002,255.19,255.14,20.0]
[1732399525620,7.66302002,255.19,255.13,20.0]
[1732399526000,7.66302002,255.21,255.13,20.0]
[1732399532920,23.776884,255.24,255.13,20.0]
[1732399533132,7.66302002,255.22,255.13,20.0]
[1732399533506,7.66302002,255.2,255.13,20.0]
[1732399537122,7.66302002,255.2,255.12,15.6959]
[1732399540013,23.776884,255.2,255.12,15.6959]
[1732399541737,7.66302002,255.19,255.12,15.6959]
[1732399543234,7.66302002,255.17,255.12,15.6959]
[1732399546139,23.776884,255.2,255.12,15.6959]
[1732399546316,31.43990402,255.2,255.12,15.6959]
[1732399546716,7.66302002,255.18,255.12,15.6959]
[1732399551529,7.66302002,255.18,255.12,21.82255803]
[1732399553731,23.776884,255.18,255.12,21.82255803]
[1732399556334,23.776884,255.18,255.13,6.12665803]
[1732399558362,23.776884,255.16,255.13,6.12665803]
[1732399558564,23.776884,255.16,255.12,21.82255803]
[1732399563572,7.66302002,255.13,255.1,6.12665803]
[1732399563763,7.66302002,255.13,255.09,6.12665803]
[1732399564765,23.776884,255.12,255.09,6.12665803]
[1732399564970,23.776884,255.12,255.08,6.12665803]
[1732399569177,23.776884,255.12,255.07,6.12665803]
[1732399572572,16.1573,255.21,255.07,13.78967805]
[1732399572781,23.776884,255.15,255.07,13.78967805]
[1732399572954,23.776884,255.15,255.06,28.28061607]
[1732399572955,23.776884,255.15,255.09,7.66302002]
[1732399574861,23.776884,255.15,255.08,6.12665803]
[1732399576373,7.66302002,255.12,255.08,6.12665803]
[1732399576561,7.66302002,255.12,255.07,6.12665803]
[1732399576763,23.776884,255.11,255.06,6.12665803]
[1732399577069,23.776884,255.09,255.06,6.12665803]
[1732399577269,23.776884,255.09,255.05,6.12665803]
[1732399577664,23.776884,255.09,255.03,6.12665803]
[1732399578589,7.66302002,255.1,255.03,6.12665803]
[1732399578775,7.66302002,255.12,255.04,7.66302002]
[1732399579084,7.66302002,255.12,255.04,13.78967805]
[1732399579085,23.776884,255.11,255.04,13.78967805]
[1732399579261,7.66302002,255.14,255.04,7.66302002]
[1732399579461,7.66302002,255.14,255.04,13.78967805]
[1732399579894,7.66302002,255.14,255.05,6.12665803]
[1732399580885,7.66302002,255.14,255.06,7.66302002]
[1732399582768,16.1573,255.21,255.08,7.66302002]
[1732399583096,7.66302002,255.17,255.08,7.66302002]
[1732399584591,7.66302002,255.17,255.1,7.66302002]
[1732399585594,6.3411,255.22,255.12,7.66302002]
[1732399585902,7.66302002,255.21,255.12,7.66302002]
[1732399586470,7.66302002,255.23,255.14,7.66302002]
[1732399586676,7.66302002,255.21,255.14,7.66302002]
[1732399588706,7.66302002,255.21,255.11,6.12665803]
[1732399588888,7.66302002,255.19,255.12,7.66302002]
[1732399590702,6.3411,255.28,255.14,7.66302002]
[1732399590887,7.66302002,255.23,255.14,7.66302002]
[1732399596509,23.776884,255.27,255.14,7.66302002]
[1732399596714,7.66302002,255.23,255.16,7.66302002]
[1732399596928,7.66302002,255.25,255.16,7.66302002]
[1732399601141,7.66302002,255.23,255.15,16.2502]
[1732399601838,6.66302002,255.23,255.15,16.2502]
[1732399609326,6.5341,255.36,255.2,7.66302002]
[1732399609554,7.66302002,255.31,255.22,7.66302002]
[1732399610242,7.66302002,255.29,255.22,7.66302002]
[1732399612045,23.776884,255.35,255.22,7.66302002]
[1732399612434,7.66302002,255.3,255.22,7.66302002]
[1732399612631,7.66302002,255.3,255.23,16.1839]
[1732399613339,7.66302002,255.32,255.24,7.66302002]
[1732399615635,7.66302002,255.32,255.25,1000.0]
[1732399617124,7.66302002,255.29,255.25,1000.0]
[1732399617330,7.66302002,255.27,255.25,1000.0]
[1732399620361,27.693084,255.35,255.25,1000.0]
[1732399620362,7.66302002,255.28,255.25,1000.0]
[1732399621750,7.66302002,255.26,255.25,1000.0]
[1732399625352,31.43990402,255.26,255.25,1000.0]
[1732399627840,46.47778008,255.32,255.25,1000.0]
[1732399627841,7.9198835,255.29,255.25,1000.0]
[1732399628052,7.66302002,255.36,255.26,7.66302002]
[1732399628250,6.424,255.38,255.25,1000.0]
[1732399628251,7.66302002,255.32,255.25,1000.0]
[1732399628468,7.66302002,255.27,255.25,1000.0]
[1732399630157,7.66302002,255.29,255.25,1000.0]
[1732399630360,23.776884,255.28,255.25,1000.0]
[1732399631360,3.9161,255.36,255.25,1000.0]
[1732399631564,7.66302002,255.3,255.25,1000.0]
[1732399631774,144.54384491,255.43,255.29,7.66302002]
[1732399631961,3.24,255.48,255.41,7.66302002]
[1732399632161,22.058,255.53,255.42,12.05559305]
[1732399632368,6.1378,255.53,255.42,27.70959305]
[1732399632761,16.1378,255.6,255.42,27.70959305]
[1732399632962,3.9125,255.59,255.42,27.70959305]
[1732399633469,16.1378,255.6,255.42,27.70959305]
[1732399633973,20.0503,255.6,255.42,27.70959305]
[1732399634361,10.0503,255.6,255.42,27.70959305]
[1732399634977,6.1378,255.6,255.42,27.70959305]
[1732399635180,6.1378,255.6,255.43,20.0]
[1732399635477,6.1378,255.6,255.44,12.05559305]
[1732399636378,23.776884,255.59,255.44,12.05559305]
[1732399636579,6.1378,255.6,255.44,12.05559305]
[1732399636747,3.9118,255.64,255.44,12.05559305]
[1732399638060,23.776884,255.63,255.44,12.05559305]
[1732399638375,27.688884,255.63,255.44,12.05559305]
[1732399638957,27.688884,255.63,255.42,15.654]
[1732399639377,27.688884,255.63,255.42,21.87295899]
[1732399640591,27.688884,255.63,255.43,20.0]
[1732399641993,27.688884,255.63,255.43,26.21895899]
[1732399642873,27.688884,255.63,255.44,6.21895899]
[1732399643685,36.1378,255.66,255.44,6.21895899]
[1732399643686,23.776884,255.59,255.44,6.21895899]
[1732399644264,23.776884,255.61,255.44,6.21895899]
[1732399644985,23.776884,255.59,255.44,6.21895899]
[1732399645669,23.776884,255.59,255.42,15.654]
[1732399646462,27.689384,255.59,255.42,21.87295899]
[1732399646668,27.5749467,255.59,255.42,21.87295899]
[1732399647189,27.5749467,255.59,255.42,15.654]
[1732399648265,37.5749467,255.59,255.42,15.654]
[1732399648468,27.5749467,255.59,255.42,15.654]
[1732399648897,37.5749467,255.59,255.42,15.654]
[1732399649197,27.5749467,255.59,255.42,15.654]
[1732399649414,37.5749467,255.59,255.42,15.654]
[1732399650193,27.5749467,255.59,255.42,15.654]
[1732399659201,27.5749467,255.59,255.43,20.0]
[1732399659703,27.5749467,255.59,255.44,15.1718]
[1732399659879,3.912,255.62,255.44,15.1718]
[1732399660201,3.912,255.62,255.45,20.0]
[1732399660404,3.912,255.62,255.46,6.2115]
[1732399660595,3.912,255.62,255.47,15.1718]
[1732399661202,7.7683976,255.66,255.47,15.1718]
[1732399661407,3.9111,255.68,255.49,15.1718]
[1732399661589,13.9111,255.68,255.49,15.1718]
[1732399663294,23.776884,255.65,255.49,15.1718]
[1732399663605,23.776884,255.65,255.5,20.0]
[1732399664083,23.776884,255.65,255.49,15.1718]
[1732399664485,23.776884,255.63,255.49,15.1718]
[1732399665798,27.688884,255.63,255.49,15.1718]
[1732399672820,37.468584,255.63,255.49,15.1718]
[1732399675530,37.470084,255.6,255.49,15.1718]
[1732399675704,10.0,255.57,255.49,15.1718]
[1732399675909,23.776884,255.56,255.49,15.1718]
[1732399676108,23.776884,255.56,255.41,15.9541]